[Event "*** Titled Tuesday 3|2 Blitz (Late)"]
[Site "Chess.com"]
[Date "2016.12.06"]
[Round "4"]
[White "VitaliyBernadskiy"]
[Black "Sethu0025"]
[Result "1-0"]
[WhiteElo "2563"]
[BlackElo "2610"]
[TimeControl "180+2"]
[EndTime "17:47:12 PST"]
[Termination "VitaliyBernadskiy won by resignation"]

1. e4 {[%clk 0:02:59.6]} 1... e5 {[%clk 0:03:00.7]} 2. Nf3 {[%clk 0:03:00.4]}
2... Nc6 {[%clk 0:03:01.8]} 3. Bb5 {[%clk 0:03:01.8]} 3... a6 {[%clk 0:03:02.8]}
4. Ba4 {[%clk 0:03:02.4]} 4... Nf6 {[%clk 0:03:03.9]} 5. d3 {[%clk 0:03:02.5]}
5... d6 {[%clk 0:03:04.1]} 6. Nc3 {[%clk 0:02:59.1]} 6... b5 {[%clk 0:03:00.7]}
7. Bb3 {[%clk 0:02:59.7]} 7... Na5 {[%clk 0:03:01.7]} 8. O-O {[%clk 0:02:57.4]}
8... Be7 {[%clk 0:02:58.9]} 9. Ne2 {[%clk 0:02:57.5]} 9... O-O {[%clk
0:02:57.6]} 10. Ng3 {[%clk 0:02:59]} 10... c5 {[%clk 0:02:56.9]} 11. c3 {[%clk
0:03:00.2]} 11... Nxb3 {[%clk 0:02:57]} 12. axb3 {[%clk 0:03:01.8]} 12... Re8
{[%clk 0:02:57.2]} 13. h3 {[%clk 0:02:56.2]} 13... Qc7 {[%clk 0:02:57]} 14. Bg5
{[%clk 0:02:54.3]} 14... h6 {[%clk 0:02:54.3]} 15. Be3 {[%clk 0:02:54.7]} 15...
Bf8 {[%clk 0:02:51.2]} 16. c4 {[%clk 0:02:54.7]} 16... Bd7 {[%clk 0:02:46.3]}
17. Nh4 {[%clk 0:02:55.1]} 17... a5 {[%clk 0:02:36.8]} 18. f4 {[%clk 0:02:52.2]}
18... exf4 {[%clk 0:02:32.7]} 19. Bxf4 {[%clk 0:02:53.3]} 19... Nh7 {[%clk
0:02:20.4]} 20. Nhf5 {[%clk 0:02:48]} 20... Be6 {[%clk 0:02:13.2]} 21. Qf3
{[%clk 0:02:37.9]} 21... a4 {[%clk 0:02:07.9]} 22. bxa4 {[%clk 0:02:33]} 22...
bxc4 {[%clk 0:02:08.3]} 23. d4 {[%clk 0:02:30.1]} 23... cxd4 {[%clk 0:02:02.7]}
24. Nxd4 {[%clk 0:02:31.6]} 24... Ng5 {[%clk 0:01:51.7]} 25. Bxg5 {[%clk
0:02:29.2]} 25... hxg5 {[%clk 0:01:52.4]} 26. Kh1 {[%clk 0:02:18.4]} 26... g6
{[%clk 0:01:51.5]} 27. Nxe6 {[%clk 0:02:16.5]} 27... Rxe6 {[%clk 0:01:52.4]} 28.
e5 {[%clk 0:02:17.7]} 28... Rd8 {[%clk 0:01:37.3]} 29. Ne4 {[%clk 0:01:57.9]}
29... Rxe5 {[%clk 0:01:29.7]} 30. Nf6+ {[%clk 0:01:52.2]} 30... Kh8 {[%clk
0:01:16.2]} 31. Nd5 {[%clk 0:01:16.8]} 31... Qd7 {[%clk 0:01:16.4]} 32. Nb6
{[%clk 0:01:13.7]} 32... Qe6 {[%clk 0:01:01]} 33. Qxf7 {[%clk 0:00:38.8]} 33...
Qxf7 {[%clk 0:01:01.9]} 34. Rxf7 {[%clk 0:00:40.3]} 34... Kg8 {[%clk 0:01:03.5]}
35. Rc7 {[%clk 0:00:39.6]} 35... d5 {[%clk 0:00:53.4]} 36. a5 {[%clk 0:00:40.6]}
36... Bd6 {[%clk 0:00:48.1]} 37. Rd7 {[%clk 0:00:39.8]} 37... Rxd7 {[%clk
0:00:23.5]} 38. Nxd7 {[%clk 0:00:41.7]} 38... Re7 {[%clk 0:00:18.2]} 39. Nf6+
{[%clk 0:00:42.3]} 39... Kf7 {[%clk 0:00:18.9]} 40. Nxd5 {[%clk 0:00:43.3]}
40... Ra7 {[%clk 0:00:19.8]} 41. Nb6 {[%clk 0:00:44.3]} 41... Bc5 {[%clk
0:00:03.5]} 42. Nxc4 {[%clk 0:00:44.3]} 42... Ke6 {[%clk 0:00:04.5]} 43. a6
{[%clk 0:00:43]} 43... Kd5 {[%clk 0:00:04.9]} 44. Nd2 {[%clk 0:00:43.8]} 44...
Be3 {[%clk 0:00:04.6]} 45. Ra5+ {[%clk 0:00:42.8]} 45... Kc6 {[%clk 0:00:05]}
46. Nc4 {[%clk 0:00:40.6]} 46... Bc5 {[%clk 0:00:05.9]} 47. Ra1 {[%clk
0:00:35.1]} 47... Re7 {[%clk 0:00:06]} 48. b3 {[%clk 0:00:35]} 48... Kb5 {[%clk
0:00:06.1]} 49. Nd2 {[%clk 0:00:30.6]} 49... Kb4 {[%clk 0:00:06.8]} 50. Nf3
{[%clk 0:00:25.2]} 50... Kxb3 {[%clk 0:00:04.7]} 51. Nxg5 {[%clk 0:00:25.8]}
51... Kb4 {[%clk 0:00:05.7]} 52. Nf3 {[%clk 0:00:24.9]} 52... Kb5 {[%clk
0:00:06.7]} 53. g4 {[%clk 0:00:24.7]} 53... Ba7 {[%clk 0:00:07.6]} 54. Kg2
{[%clk 0:00:24.3]} 54... Re6 {[%clk 0:00:08.8]} 55. Kg3 {[%clk 0:00:23]} 55...
Rxa6 {[%clk 0:00:06.6]} 56. Rxa6 {[%clk 0:00:22.9]} 56... Kxa6 {[%clk
0:00:08.2]} 57. Kf4 {[%clk 0:00:23.1]} 57... Kb5 {[%clk 0:00:07]} 58. Kg5 {[%clk
0:00:24.2]} 58... Kc6 {[%clk 0:00:08.1]} 59. Kxg6 {[%clk 0:00:25.6]} 59... Kd7
{[%clk 0:00:10]} 60. h4 {[%clk 0:00:27]} 60... Ke8 {[%clk 0:00:10.8]} 61. Kg7
{[%clk 0:00:27.3]} 61... Be3 {[%clk 0:00:10.7]} 62. h5 {[%clk 0:00:27.8]} 62...
Bc1 {[%clk 0:00:11.6]} 63. g5 {[%clk 0:00:28.8]} 63... Bb2+ {[%clk 0:00:12.8]}
64. Kg8 {[%clk 0:00:30.1]} 1-0

[Event "*** Titled Tuesday 3|2 Blitz (Late)"]
[Site "Chess.com"]
[Date "2016.12.06"]
[Round "4"]
[White "nonscitis"]
[Black "Durarbayli"]
[Result "0-1"]
[WhiteElo "2369"]
[BlackElo "2595"]
[TimeControl "180+2"]
[EndTime "17:47:14 PST"]
[Termination "Durarbayli won by resignation"]

1. d4 {[%clk 0:03:00.9]} 1... Nf6 {[%clk 0:02:51.9]} 2. c4 {[%clk 0:03:00.6]}
2... g6 {[%clk 0:02:51.1]} 3. Nc3 {[%clk 0:03:00.9]} 3... d5 {[%clk 0:02:51]} 4.
Bg5 {[%clk 0:03:01.1]} 4... Ne4 {[%clk 0:02:48.2]} 5. h4 {[%clk 0:03:00.8]} 5...
Nxc3 {[%clk 0:02:46.6]} 6. bxc3 {[%clk 0:03:00]} 6... dxc4 {[%clk 0:02:47.7]} 7.
e3 {[%clk 0:02:59.9]} 7... Be6 {[%clk 0:02:44.8]} 8. Nf3 {[%clk 0:02:58.5]} 8...
Bg7 {[%clk 0:02:41.9]} 9. Be2 {[%clk 0:02:57.4]} 9... Nd7 {[%clk 0:02:32.8]} 10.
O-O {[%clk 0:02:56]} 10... Nf6 {[%clk 0:02:25.9]} 11. Nd2 {[%clk 0:02:53]} 11...
O-O {[%clk 0:02:25.4]} 12. Qc2 {[%clk 0:02:47.2]} 12... c5 {[%clk 0:02:22.8]}
13. dxc5 {[%clk 0:02:37.8]} 13... Rc8 {[%clk 0:02:18.5]} 14. Rfd1 {[%clk
0:02:26.9]} 14... Rxc5 {[%clk 0:02:05.5]} 15. Bxf6 {[%clk 0:02:12]} 15... exf6
{[%clk 0:02:04.7]} 16. Ne4 {[%clk 0:02:09.5]} 16... Rd5 {[%clk 0:02:04.7]} 17.
Bxc4 {[%clk 0:02:09.4]} 17... Rxd1+ {[%clk 0:02:05.4]} 18. Rxd1 {[%clk
0:02:09.5]} 18... Bxc4 {[%clk 0:02:02.8]} 19. Rxd8 {[%clk 0:02:08.7]} 19... Rxd8
{[%clk 0:02:04.7]} 20. Qb2 {[%clk 0:01:57.6]} 20... Bd5 {[%clk 0:02:05]} 21. Ng3
{[%clk 0:01:50.7]} 21... f5 {[%clk 0:02:04]} 22. Ne2 {[%clk 0:01:51.1]} 22... a6
{[%clk 0:01:54.3]} 23. a4 {[%clk 0:01:50.4]} 23... Rc8 {[%clk 0:01:53.7]} 24.
Nd4 {[%clk 0:01:50.6]} 24... Rc4 {[%clk 0:01:53.8]} 25. Qb6 {[%clk 0:01:44.5]}
25... Bf8 {[%clk 0:01:49]} 26. Qd8 {[%clk 0:01:41.3]} 26... Be4 {[%clk
0:01:46.6]} 27. f3 {[%clk 0:01:37.7]} 27... Bc6 {[%clk 0:01:47.3]} 28. Nxc6
{[%clk 0:01:24.7]} 28... bxc6 {[%clk 0:01:49.2]} 29. Qa8 {[%clk 0:01:10.3]}
29... Rxa4 {[%clk 0:01:42]} 30. Qxc6 {[%clk 0:01:10.3]} 30... Ra1+ {[%clk
0:01:35.2]} 31. Kf2 {[%clk 0:01:08.4]} 31... a5 {[%clk 0:01:32.5]} 32. Qa8
{[%clk 0:00:58.3]} 32... a4 {[%clk 0:01:32.8]} 33. c4 {[%clk 0:00:59.3]} 33...
Kg7 {[%clk 0:01:28.8]} 34. Qa5 {[%clk 0:00:55.3]} 34... Be7 {[%clk 0:01:26.6]}
35. h5 {[%clk 0:00:55.2]} 35... gxh5 {[%clk 0:01:19]} 36. Qxf5 {[%clk
0:00:51.7]} 36... a3 {[%clk 0:01:08]} 37. Qxh5 {[%clk 0:00:48.1]} 37... a2
{[%clk 0:01:03.4]} 38. Qg4+ {[%clk 0:00:48.6]} 38... Kh6 {[%clk 0:01:03.8]} 39.
Qf4+ {[%clk 0:00:48.1]} 39... Bg5 {[%clk 0:00:57.5]} 40. Qd6+ {[%clk 0:00:44.8]}
40... Kg7 {[%clk 0:00:42.2]} 41. Qe5+ {[%clk 0:00:38.5]} 41... Bf6 {[%clk
0:00:43.3]} 42. Qg3+ {[%clk 0:00:37.5]} 42... Kh6 {[%clk 0:00:44.4]} 43. Qf4+
{[%clk 0:00:37.7]} 43... Kg6 {[%clk 0:00:45.3]} 44. Qe4+ {[%clk 0:00:36.6]}
44... Kg7 {[%clk 0:00:44.3]} 45. Qg4+ {[%clk 0:00:37.2]} 45... Kh6 {[%clk
0:00:40.8]} 46. Qf4+ {[%clk 0:00:35.1]} 46... Bg5 {[%clk 0:00:40.3]} 47. Qd6+
{[%clk 0:00:34]} 47... f6 {[%clk 0:00:41.6]} 48. Qf8+ {[%clk 0:00:34.5]} 48...
Kg6 {[%clk 0:00:42.6]} 49. Qg8+ {[%clk 0:00:35]} 49... Kh6 {[%clk 0:00:44]} 50.
Qf8+ {[%clk 0:00:30.8]} 50... Kh5 {[%clk 0:00:45.2]} 51. Qf7+ {[%clk 0:00:30.3]}
51... Kh6 {[%clk 0:00:46.5]} 52. Qf8+ {[%clk 0:00:30.4]} 52... Kg6 {[%clk
0:00:47.8]} 53. Qg8+ {[%clk 0:00:30.6]} 53... Kh6 {[%clk 0:00:48.8]} 54. c5
{[%clk 0:00:29.8]} 54... Rf1+ {[%clk 0:00:48.2]} 55. Kxf1 {[%clk 0:00:30.4]}
55... a1=Q+ {[%clk 0:00:48.8]} 56. Kf2 {[%clk 0:00:30.2]} 56... Qb2+ {[%clk
0:00:39.7]} 57. Kg3 {[%clk 0:00:29]} 57... Qe5+ {[%clk 0:00:40.4]} 58. Kh3
{[%clk 0:00:29.2]} 58... Qf5+ {[%clk 0:00:29.8]} 59. Kh2 {[%clk 0:00:28.5]}
59... Bxe3 {[%clk 0:00:25.9]} 60. Qf8+ {[%clk 0:00:28.6]} 60... Kg5 {[%clk
0:00:27]} 61. Qg7+ {[%clk 0:00:23.3]} 61... Qg6 {[%clk 0:00:27.8]} 62. Qxg6+
{[%clk 0:00:10.1]} 62... hxg6 {[%clk 0:00:29.7]} 63. c6 {[%clk 0:00:11.5]} 63...
Bf4+ {[%clk 0:00:30.6]} 64. g3 {[%clk 0:00:12.6]} 64... Bc7 {[%clk 0:00:32.5]}
65. Kg2 {[%clk 0:00:12.9]} 65... Kf5 {[%clk 0:00:33.6]} 66. Kh3 {[%clk
0:00:14.3]} 66... Ke6 {[%clk 0:00:32]} 67. Kg4 {[%clk 0:00:15.1]} 67... Kd5
{[%clk 0:00:33.1]} 68. f4 {[%clk 0:00:16]} 68... Kxc6 {[%clk 0:00:34.2]} 69. f5
{[%clk 0:00:17.4]} 69... g5 {[%clk 0:00:35.2]} 0-1

[Event "*** Titled Tuesday 3|2 Blitz (Late)"]
[Site "Chess.com"]
[Date "2016.12.06"]
[Round "4"]
[White "josiwales"]
[Black "Kawhi_Leonard2"]
[Result "0-1"]
[WhiteElo "2226"]
[BlackElo "2226"]
[TimeControl "180+2"]
[EndTime "17:48:36 PST"]
[Termination "Kawhi_Leonard2 won by resignation"]

1. e4 {[%clk 0:03:02]} 1... c5 {[%clk 0:02:59.9]} 2. Nc3 {[%clk 0:03:03]} 2...
Nc6 {[%clk 0:03:00.1]} 3. g3 {[%clk 0:03:04.9]} 3... g6 {[%clk 0:03:00.4]} 4.
Bg2 {[%clk 0:03:06.8]} 4... Bg7 {[%clk 0:03:01.6]} 5. d3 {[%clk 0:03:08.7]} 5...
e6 {[%clk 0:03:02.7]} 6. Be3 {[%clk 0:03:10.2]} 6... Nd4 {[%clk 0:02:52.6]} 7.
Qd2 {[%clk 0:03:09]} 7... Ne7 {[%clk 0:02:53]} 8. Nd1 {[%clk 0:03:10]} 8... d6
{[%clk 0:02:34.1]} 9. c3 {[%clk 0:03:09.9]} 9... Ndc6 {[%clk 0:02:35]} 10. Bh6
{[%clk 0:03:11.6]} 10... O-O {[%clk 0:02:26.6]} 11. h4 {[%clk 0:03:08.4]} 11...
Bxh6 {[%clk 0:02:23.5]} 12. Qxh6 {[%clk 0:03:10.3]} 12... f6 {[%clk 0:02:24.6]}
13. Qd2 {[%clk 0:03:10.7]} 13... d5 {[%clk 0:02:12.4]} 14. h5 {[%clk 0:03:10.4]}
14... g5 {[%clk 0:02:11.8]} 15. h6 {[%clk 0:03:09.3]} 15... d4 {[%clk
0:01:55.8]} 16. c4 {[%clk 0:03:07]} 16... e5 {[%clk 0:01:54.5]} 17. f4 {[%clk
0:03:00.8]} 17... gxf4 {[%clk 0:01:53.4]} 18. gxf4 {[%clk 0:03:00.3]} 18... Ng6
{[%clk 0:01:54.2]} 19. f5 {[%clk 0:02:59]} 19... Nf4 {[%clk 0:01:54.9]} 20. Nh3
{[%clk 0:02:59.8]} 20... Nxh3 {[%clk 0:01:45.6]} 21. Bxh3 {[%clk 0:02:59.2]}
21... Kh8 {[%clk 0:01:46.2]} 22. a3 {[%clk 0:02:59]} 22... Rg8 {[%clk
0:01:43.4]} 23. Nf2 {[%clk 0:02:59.3]} 23... Bd7 {[%clk 0:01:41.6]} 24. O-O-O
{[%clk 0:03:00.5]} 24... Qe7 {[%clk 0:01:27.1]} 25. Rdg1 {[%clk 0:03:00.3]}
25... Rxg1+ {[%clk 0:01:21.6]} 26. Rxg1 {[%clk 0:03:01.1]} 26... Rg8 {[%clk
0:01:21.7]} 27. Rxg8+ {[%clk 0:03:02.3]} 27... Kxg8 {[%clk 0:01:22]} 28. Ng4
{[%clk 0:03:04.2]} 28... Kh8 {[%clk 0:01:10.7]} 29. Qg2 {[%clk 0:03:03.5]} 29...
Qf8 {[%clk 0:01:08.6]} 30. Qg3 {[%clk 0:02:58.8]} 30... Ne7 {[%clk 0:01:04.7]}
31. Qh4 {[%clk 0:02:56.9]} 31... Ng8 {[%clk 0:01:05.4]} 32. Bf1 {[%clk 0:02:52]}
32... b6 {[%clk 0:00:54.6]} 33. Be2 {[%clk 0:02:49.6]} 33... Qe7 {[%clk
0:00:55.6]} 34. Bd1 {[%clk 0:02:41.4]} 34... Qf8 {[%clk 0:00:56.4]} 35. Kb1
{[%clk 0:02:33]} 35... Bc6 {[%clk 0:00:57]} 36. Ka2 {[%clk 0:02:33.5]} 36... Bd7
{[%clk 0:00:57.7]} 37. Kb1 {[%clk 0:02:29.9]} 37... Bc6 {[%clk 0:00:58.8]} 38.
Bb3 {[%clk 0:02:31.4]} 38... Bd7 {[%clk 0:00:59.8]} 39. Ba2 {[%clk 0:02:32.5]}
39... Bc6 {[%clk 0:01:00.1]} 40. Kc1 {[%clk 0:02:32.5]} 40... Bd7 {[%clk
0:01:01.2]} 41. Kd1 {[%clk 0:02:33.5]} 41... Ba4+ {[%clk 0:01:00.6]} 42. Ke2
{[%clk 0:02:33.5]} 42... Bd7 {[%clk 0:01:02]} 43. Kf3 {[%clk 0:02:31.6]} 43...
Bc6 {[%clk 0:01:03.1]} 44. Kg3 {[%clk 0:02:32.6]} 44... Bd7 {[%clk 0:01:04.1]}
45. Kh3 {[%clk 0:02:30]} 45... Bc6 {[%clk 0:01:05]} 46. b4 {[%clk 0:02:23.9]}
46... cxb4 {[%clk 0:00:44.9]} 47. axb4 {[%clk 0:02:24.7]} 47... Ba4 {[%clk
0:00:40.9]} 48. c5 {[%clk 0:02:19.9]} 48... Bd1 {[%clk 0:00:18.1]} 49. Bxg8
{[%clk 0:02:17.2]} 49... Bxg4+ {[%clk 0:00:07]} 50. Qxg4 {[%clk 0:02:17.8]}
50... Qxh6+ {[%clk 0:00:08]} 51. Kg2 {[%clk 0:02:17.8]} 51... Qd2+ {[%clk
0:00:08.5]} 52. Kg1 {[%clk 0:02:18.4]} 52... Qe1+ {[%clk 0:00:08.7]} 53. Kh2
{[%clk 0:02:18.2]} 53... Qf2+ {[%clk 0:00:09.2]} 54. Kh3 {[%clk 0:02:15.5]}
54... Qe3+ {[%clk 0:00:10.4]} 55. Kh4 {[%clk 0:02:16.4]} 55... Qh6+ {[%clk
0:00:11.4]} 56. Kg3 {[%clk 0:02:11]} 56... Qe3+ {[%clk 0:00:11.9]} 57. Kg2
{[%clk 0:02:11.9]} 57... Qd2+ {[%clk 0:00:12.5]} 58. Kf1 {[%clk 0:02:12]} 58...
Qc1+ {[%clk 0:00:12.3]} 59. Ke2 {[%clk 0:02:11.1]} 59... Qe3+ {[%clk 0:00:13.4]}
60. Kd1 {[%clk 0:02:11.2]} 60... Qxd3+ {[%clk 0:00:14.6]} 61. Kc1 {[%clk
0:02:09.5]} 61... Qc3+ {[%clk 0:00:15.7]} 62. Kd1 {[%clk 0:02:08]} 62... Qd3+
{[%clk 0:00:16.2]} 63. Ke1 {[%clk 0:02:09.3]} 63... Qe3+ {[%clk 0:00:16.6]} 64.
Kf1 {[%clk 0:02:06]} 64... Qc1+ {[%clk 0:00:17]} 65. Kg2 {[%clk 0:02:06.5]}
65... Qd2+ {[%clk 0:00:17.7]} 66. Kg3 {[%clk 0:01:56.6]} 66... Qe3+ {[%clk
0:00:18.7]} 67. Kh4 {[%clk 0:01:48.8]} 67... Qh6+ {[%clk 0:00:18.7]} 68. Kg3
{[%clk 0:01:41.1]} 68... Qe3+ {[%clk 0:00:19.5]} 69. Kg2 {[%clk 0:01:41.3]}
69... Qd2+ {[%clk 0:00:20.5]} 70. Kf1 {[%clk 0:01:42]} 70... Qc1+ {[%clk
0:00:21.3]} 71. Ke2 {[%clk 0:01:42.9]} 71... Qe3+ {[%clk 0:00:22.3]} 72. Kd1
{[%clk 0:01:43.7]} 72... Qd3+ {[%clk 0:00:22.6]} 73. Kc1 {[%clk 0:01:43.1]}
73... Qc3+ {[%clk 0:00:23.9]} 74. Kb1 {[%clk 0:01:26.9]} 74... Qxb4+ {[%clk
0:00:24.8]} 75. Ka2 {[%clk 0:01:24.9]} 75... Qa5+ {[%clk 0:00:23]} 76. Kb3
{[%clk 0:01:16.5]} 76... Qb5+ {[%clk 0:00:22.9]} 77. Ka3 {[%clk 0:01:16.9]}
77... Qxc5+ {[%clk 0:00:23.4]} 78. Kb3 {[%clk 0:01:16.2]} 78... Qc3+ {[%clk
0:00:19.7]} 79. Ka4 {[%clk 0:01:16.3]} 79... a5 {[%clk 0:00:18.4]} 80. Kb5
{[%clk 0:01:14.9]} 80... Qc5+ {[%clk 0:00:13.6]} 81. Ka6 {[%clk 0:01:13]} 81...
Qc8+ {[%clk 0:00:11.6]} 82. Kxb6 {[%clk 0:01:14]} 82... Qxg8 {[%clk 0:00:11.9]}
83. Qe2 {[%clk 0:01:11.1]} 83... Qd8+ {[%clk 0:00:12.5]} 84. Kb5 {[%clk
0:01:11.2]} 84... d3 {[%clk 0:00:13.8]} 85. Qd2 {[%clk 0:01:11.7]} 85... Qd4
{[%clk 0:00:14.5]} 86. Kxa5 {[%clk 0:01:11.7]} 86... Qxe4 {[%clk 0:00:14.7]} 87.
Qc3 {[%clk 0:01:10.7]} 87... Qd5+ {[%clk 0:00:15.1]} 88. Ka4 {[%clk 0:01:07.8]}
88... d2 {[%clk 0:00:16.3]} 89. Qc8+ {[%clk 0:00:54.5]} 89... Kg7 {[%clk
0:00:17.5]} 90. Qc7+ {[%clk 0:00:55.9]} 90... Kh6 {[%clk 0:00:17.8]} 0-1

[Event "*** Titled Tuesday 3|2 Blitz (Late)"]
[Site "Chess.com"]
[Date "2016.12.06"]
[Round "4"]
[White "oskariot"]
[Black "jposthuma"]
[Result "1-0"]
[WhiteElo "2397"]
[BlackElo "2195"]
[TimeControl "180+2"]
[EndTime "17:50:25 PST"]
[Termination "oskariot won by checkmate"]

1. Nc3 {[%clk 0:03:00]} 1... d5 {[%clk 0:02:59.2]} 2. e4 {[%clk 0:03:00.9]} 2...
dxe4 {[%clk 0:02:56.2]} 3. Nxe4 {[%clk 0:03:02]} 3... Qd5 {[%clk 0:02:32]} 4.
Nc3 {[%clk 0:02:58.7]} 4... Qd8 {[%clk 0:02:31.6]} 5. Nf3 {[%clk 0:02:58.5]}
5... Nf6 {[%clk 0:02:31.8]} 6. d4 {[%clk 0:02:59.5]} 6... Bg4 {[%clk 0:02:32.5]}
7. Be2 {[%clk 0:03:00.6]} 7... e6 {[%clk 0:02:32.2]} 8. O-O {[%clk 0:03:02]}
8... c6 {[%clk 0:02:29.8]} 9. Bf4 {[%clk 0:03:02.8]} 9... Bd6 {[%clk 0:02:29.6]}
10. Qd2 {[%clk 0:03:01.6]} 10... Qc7 {[%clk 0:02:24.3]} 11. Bxd6 {[%clk
0:03:00.8]} 11... Qxd6 {[%clk 0:02:26.2]} 12. Rad1 {[%clk 0:03:02]} 12... Nbd7
{[%clk 0:02:25.6]} 13. h3 {[%clk 0:03:02.9]} 13... Bh5 {[%clk 0:02:25.5]} 14. a3
{[%clk 0:02:54.1]} 14... O-O-O {[%clk 0:02:17]} 15. b4 {[%clk 0:02:49.7]} 15...
Rhe8 {[%clk 0:01:25.6]} 16. Qe3 {[%clk 0:02:34.2]} 16... Nd5 {[%clk 0:01:22.4]}
17. Ne4 {[%clk 0:02:32]} 17... Qc7 {[%clk 0:00:58.5]} 18. Qb3 {[%clk 0:02:03]}
18... Nf4 {[%clk 0:00:51.4]} 19. Rfe1 {[%clk 0:02:03.6]} 19... Nxe2+ {[%clk
0:00:45.5]} 20. Rxe2 {[%clk 0:02:04.2]} 20... Ne5 {[%clk 0:00:43.7]} 21. Neg5
{[%clk 0:01:52.7]} 21... h6 {[%clk 0:00:34.4]} 22. Rxe5 {[%clk 0:01:51.9]} 22...
hxg5 {[%clk 0:00:33.6]} 23. Rxg5 {[%clk 0:01:52.5]} 23... Bxf3 {[%clk
0:00:31.2]} 24. Qxf3 {[%clk 0:01:52.7]} 24... f6 {[%clk 0:00:27.7]} 25. Rg6
{[%clk 0:01:37.4]} 25... Rd7 {[%clk 0:00:16.7]} 26. c3 {[%clk 0:01:14.4]} 26...
Red8 {[%clk 0:00:17]} 27. Qg4 {[%clk 0:01:06.8]} 27... Re7 {[%clk 0:00:06.8]}
28. Re1 {[%clk 0:01:05.2]} 28... Qd7 {[%clk 0:00:05.2]} 29. h4 {[%clk
0:01:00.8]} 29... Rde8 {[%clk 0:00:04.1]} 30. g3 {[%clk 0:00:57.9]} 30... Qd6
{[%clk 0:00:03.3]} 31. Kg2 {[%clk 0:00:55.1]} 31... Qd7 {[%clk 0:00:04.2]} 32.
h5 {[%clk 0:00:55.8]} 32... Rh8 {[%clk 0:00:04.6]} 33. Rh1 {[%clk 0:00:52.9]}
33... Kc7 {[%clk 0:00:03.6]} 34. Qf4+ {[%clk 0:00:52.4]} 34... Kc8 {[%clk
0:00:04]} 35. Qf3 {[%clk 0:00:49.6]} 35... Kc7 {[%clk 0:00:04.6]} 36. h6 {[%clk
0:00:50]} 36... gxh6 {[%clk 0:00:04.6]} 37. Rhxh6 {[%clk 0:00:50.8]} 37... Rxh6
{[%clk 0:00:06.5]} 38. Rxh6 {[%clk 0:00:52]} 38... f5 {[%clk 0:00:08.1]} 39.
Qf4+ {[%clk 0:00:53.3]} 39... Kb6 {[%clk 0:00:08.1]} 40. Qe5 {[%clk 0:00:52.2]}
40... a6 {[%clk 0:00:07.2]} 41. a4 {[%clk 0:00:46]} 41... Ka7 {[%clk 0:00:07.7]}
42. a5 {[%clk 0:00:45.9]} 42... b6 {[%clk 0:00:06.7]} 43. axb6+ {[%clk
0:00:46.4]} 43... Kxb6 {[%clk 0:00:08.6]} 44. Rh8 {[%clk 0:00:47.5]} 44... Qc7
{[%clk 0:00:07]} 45. Qc5+ {[%clk 0:00:45.4]} 45... Kb7 {[%clk 0:00:07.6]} 46.
Rh6 {[%clk 0:00:42.2]} 46... Qd7 {[%clk 0:00:07.9]} 47. Qe5 {[%clk 0:00:42.5]}
47... Re8 {[%clk 0:00:05.8]} 48. Rg6 {[%clk 0:00:42.4]} 48... Re7 {[%clk
0:00:07]} 49. Rg8 {[%clk 0:00:42.9]} 49... Re8 {[%clk 0:00:08.4]} 50. Rg7 {[%clk
0:00:41.4]} 50... Re7 {[%clk 0:00:09.8]} 51. Rg8 {[%clk 0:00:35.7]} 51... Re8
{[%clk 0:00:11.1]} 52. Rxe8 {[%clk 0:00:37.1]} 52... Qxe8 {[%clk 0:00:13]} 53.
f3 {[%clk 0:00:36.8]} 53... Qg8 {[%clk 0:00:12.6]} 54. Qd6 {[%clk 0:00:36.2]}
54... Qe8 {[%clk 0:00:13.2]} 55. c4 {[%clk 0:00:31.9]} 55... Qf7 {[%clk
0:00:12.1]} 56. Qd8 {[%clk 0:00:25.4]} 56... Qc7 {[%clk 0:00:02.9]} 57. Qxc7+
{[%clk 0:00:24.4]} 57... Kxc7 {[%clk 0:00:04.8]} 58. g4 {[%clk 0:00:25.7]} 58...
fxg4 {[%clk 0:00:03.6]} 59. fxg4 {[%clk 0:00:26.7]} 59... e5 {[%clk 0:00:05.1]}
60. dxe5 {[%clk 0:00:27.6]} 60... c5 {[%clk 0:00:06.7]} 61. bxc5 {[%clk
0:00:19.3]} 61... a5 {[%clk 0:00:08]} 62. g5 {[%clk 0:00:13]} 62... a4 {[%clk
0:00:08.5]} 63. g6 {[%clk 0:00:14.5]} 63... a3 {[%clk 0:00:09.8]} 64. g7 {[%clk
0:00:15.9]} 64... a2 {[%clk 0:00:11.5]} 65. g8=Q {[%clk 0:00:17.3]} 65... a1=Q
{[%clk 0:00:13.1]} 66. Qf7+ {[%clk 0:00:18.3]} 66... Kc6 {[%clk 0:00:14]} 67.
Qd5+ {[%clk 0:00:19.7]} 67... Kc7 {[%clk 0:00:15.5]} 68. Qd6+ {[%clk 0:00:21.1]}
68... Kc8 {[%clk 0:00:17.1]} 69. Qc6+ {[%clk 0:00:22]} 69... Kd8 {[%clk
0:00:17.9]} 70. Qd5+ {[%clk 0:00:22.6]} 70... Kc8 {[%clk 0:00:18.6]} 71. e6
{[%clk 0:00:15.8]} 71... Qg7+ {[%clk 0:00:18.9]} 72. Kf3 {[%clk 0:00:16.5]}
72... Qf6+ {[%clk 0:00:19.8]} 73. Ke3 {[%clk 0:00:17.9]} 73... Qh6+ {[%clk
0:00:19.7]} 74. Kd3 {[%clk 0:00:17.5]} 74... Qg6+ {[%clk 0:00:19.5]} 75. Qe4
{[%clk 0:00:17.6]} 75... Qg3+ {[%clk 0:00:19.6]} 76. Kd4 {[%clk 0:00:18.8]}
76... Qf2+ {[%clk 0:00:19.7]} 77. Kd5 {[%clk 0:00:19.9]} 77... Qd2+ {[%clk
0:00:19.3]} 78. Kc6 {[%clk 0:00:20.7]} 78... Qd8 {[%clk 0:00:18.4]} 79. e7
{[%clk 0:00:17.9]} 79... Qc7+ {[%clk 0:00:06.5]} 80. Kb5 {[%clk 0:00:18.2]}
80... Qb8+ {[%clk 0:00:06.5]} 81. Ka4 {[%clk 0:00:16.7]} 81... Qa7+ {[%clk
0:00:07.1]} 82. Kb3 {[%clk 0:00:17.6]} 82... Qb8+ {[%clk 0:00:06.5]} 83. Kc3
{[%clk 0:00:18.4]} 83... Qg3+ {[%clk 0:00:06.3]} 84. Kb4 {[%clk 0:00:17.7]}
84... Qb8+ {[%clk 0:00:07]} 85. Ka4 {[%clk 0:00:18.6]} 85... Qa7+ {[%clk
0:00:07.9]} 86. Kb3 {[%clk 0:00:19.2]} 86... Qb8+ {[%clk 0:00:07.6]} 87. Kc2
{[%clk 0:00:19.4]} 87... Qh2+ {[%clk 0:00:08.6]} 88. Kd3 {[%clk 0:00:20.4]}
88... Qh3+ {[%clk 0:00:06.2]} 89. Kd4 {[%clk 0:00:16.7]} 89... Qd7+ {[%clk
0:00:05.9]} 90. Kc3 {[%clk 0:00:13.1]} 90... Qh3+ {[%clk 0:00:07.5]} 91. Kd2
{[%clk 0:00:11.8]} 91... Qh2+ {[%clk 0:00:07]} 92. Kd3 {[%clk 0:00:12.5]} 92...
Qh3+ {[%clk 0:00:08.2]} 93. Qe3 {[%clk 0:00:13.8]} 93... Qh7+ {[%clk 0:00:08]}
94. Kd4 {[%clk 0:00:14.3]} 94... Qh4+ {[%clk 0:00:07.2]} 95. Kc3 {[%clk
0:00:15]} 95... Qh8+ {[%clk 0:00:07]} 96. Kb3 {[%clk 0:00:15.9]} 96... Qe8
{[%clk 0:00:07]} 97. Qe6+ {[%clk 0:00:16.4]} 97... Kb8 {[%clk 0:00:06.5]} 98.
Qd6+ {[%clk 0:00:17.5]} 98... Kb7 {[%clk 0:00:06.1]} 99. c6+ {[%clk 0:00:18.2]}
99... Ka6 {[%clk 0:00:05.6]} 100. Qd7 {[%clk 0:00:18.2]} 100... Qg6 {[%clk
0:00:02.6]} 101. Qb7+ {[%clk 0:00:18.4]} 101... Ka5 {[%clk 0:00:03.6]} 102. Qb5#
{[%clk 0:00:19.9]} 1-0